bitfinex/quotes_SOLUSD_20250719
["timestamp","ask_amount","ask_price","bid_price","bid_amount"]
[1752884298882,6.3450026,177.15,177.12,0.03]
[1752884299060,26.7,177.17,177.12,0.03]
[1752884299388,0.7,177.16,177.12,0.03]
[1752884300181,0.7,177.15,177.12,0.03]
[1752884300784,0.7,177.14,177.12,0.03]
[1752884301077,0.7,177.15,177.12,0.03]
[1752884301283,0.7,177.14,177.12,0.03]
[1752884304089,6.34525636,177.14,177.12,0.03]
[1752884305696,0.7,177.13,177.12,0.03]
[1752884307481,0.7,177.15,177.12,0.03]
[1752884307994,0.7,177.14,177.12,0.03]
[1752884308518,0.7,177.16,177.12,0.03]
[1752884308881,0.7,177.15,177.12,0.03]
[1752884309402,5.64429643,177.17,177.13,0.2]
[1752884309604,5.64429643,177.17,177.14,40.02]
[1752884309905,0.7,177.16,177.14,40.02]
[1752884310304,6.34467449,177.16,177.14,40.02]
[1752884310492,0.7,177.15,177.14,40.02]
[1752884311484,5.64467449,177.16,177.14,40.02]
[1752884311805,6.34467449,177.16,177.14,40.02]
[1752884312105,0.7,177.15,177.14,40.02]
[1752884312285,5.64467449,177.16,177.14,40.02]
[1752884312486,6.34467449,177.16,177.14,40.02]
[1752884312694,0.06,177.15,177.14,40.02]
[1752884313312,0.76,177.15,177.14,40.02]
[1752884314311,6.40493367,177.15,177.14,40.02]
[1752884317203,6.40493367,177.15,177.12,0.03]
[1752884317399,0.7,177.14,177.12,0.03]
[1752884318890,5.64557104,177.13,177.12,0.03]
[1752884319416,6.34557104,177.13,177.12,0.03]
[1752884324920,6.34557104,177.13,177.11,0.03]
[1752884325120,26.0,177.13,177.11,0.03]
[1752884325322,0.7,177.12,177.11,0.03]
[1752884326819,26.7,177.12,177.11,0.03]
[1752884327032,0.7,177.13,177.11,0.03]
[1752884327319,0.06,177.15,177.11,0.03]
[1752884327523,0.06,177.15,177.11,17.04468397]
[1752884327714,0.06,177.15,177.12,17.01468397]
[1752884327909,0.06,177.15,177.13,40.04]
[1752884328502,0.76,177.15,177.13,40.04]
[1752884330548,6.40507033,177.15,177.13,40.04]
[1752884331417,0.06,177.15,177.13,40.04]
[1752884331742,0.76,177.15,177.13,40.04]
[1752884332346,6.40504369,177.15,177.13,40.04]
[1752884332842,0.7,177.14,177.13,40.04]
[1752884334324,6.34525234,177.14,177.13,40.04]
[1752884338837,6.34525234,177.14,177.11,0.03]
[1752884339159,0.7,177.13,177.11,0.03]
[1752884340655,5.64582545,177.13,177.11,0.03]
[1752884340860,5.64532969,177.14,177.11,0.03]
[1752884341080,0.06,177.15,177.12,0.23]
[1752884341665,0.06,177.15,177.13,0.23]
[1752884341868,0.06,177.15,177.14,40.02]
[1752884342166,0.06,177.15,177.14,40.25]
[1752884342356,0.06,177.15,177.14,57.03468397]
[1752884342768,0.06,177.15,177.14,62.67993631]
[1752884342939,0.06,177.15,177.14,68.94163631]
[1752884352088,0.06,177.15,177.14,156.48163631]
[1752884362694,0.06,177.15,177.14,149.94993631]
[1752884363077,0.75,177.15,177.14,144.30468397]
[1752884363925,0.75,177.15,177.14,56.76468397]
[1752884364269,0.06,177.15,177.14,56.76468397]
[1752884364989,0.06,177.15,177.14,62.40993631]
[1752884370622,0.06,177.15,177.14,56.76468397]
[1752884370924,0.75,177.15,177.14,39.98]
[1752884372490,6.39493367,177.15,177.14,39.98]
[1752884393721,0.06,177.15,177.14,39.98]
[1752884394544,0.77,177.15,177.14,39.98]
[1752884394748,0.06,177.15,177.14,39.98]
[1752884397646,0.77,177.15,177.14,39.98]
[1752884399058,6.41493367,177.15,177.14,39.98]
[1752884401480,6.41493367,177.15,177.12,0.03]
[1752884401625,0.71,177.14,177.12,0.03]
[1752884403265,0.06,177.15,177.12,0.03]
[1752884403960,0.77,177.15,177.12,0.03]
[1752884405349,0.71,177.14,177.12,0.03]
[1752884405647,0.71,177.14,177.13,39.98]
[1752884406361,0.06,177.15,177.13,39.98]
[1752884406555,0.74,177.15,177.13,39.98]
[1752884409042,0.06,177.15,177.13,39.98]
[1752884409243,0.06,177.15,177.14,0.23]
[1752884409442,0.06,177.15,177.14,17.01468397]
[1752884410345,0.06,177.15,177.14,22.65993631]
[1752884410543,0.06,177.15,177.14,23.22446154]
[1752884411457,0.06,177.15,177.14,22.65993631]
[1752884414079,0.06,177.15,177.14,22.42993631]
[1752884414481,0.06,177.15,177.14,22.65993631]
[1752884415156,0.06,177.15,177.13,0.5645571]
[1752884415357,0.74,177.15,177.14,39.98]
[1752884417369,0.06,177.15,177.14,39.98]
[1752884417565,0.74,177.15,177.14,39.98]
[1752884418066,0.06,177.15,177.14,39.98]
[1752884425776,0.06,177.15,177.14,45.62525234]
[1752884426264,0.06,177.15,177.14,62.63993631]
[1752884428402,0.06,177.15,177.14,88.63993631]
[1752884428889,0.06,177.15,177.14,89.20446154]
[1752884432000,0.06,177.15,177.14,176.74446154]
[1752884432191,0.06,177.15,177.14,176.17993631]
[1752884454213,0.06,177.15,177.14,175.94993631]
[1752884456301,0.06,177.15,177.14,176.17993631]
[1752884459201,0.06,177.15,177.14,175.94993631]
[1752884459901,0.06,177.15,177.14,176.17993631]
[1752884460402,0.06,177.15,177.14,175.94993631]
[1752884460722,0.06,177.15,177.14,170.30468397]
[1752884461018,0.77,177.15,177.14,170.30468397]
[1752884461397,0.77,177.15,177.14,144.30468397]
[1752884461634,0.77,177.15,177.14,56.76468397]
[1752884462332,0.77,177.15,177.14,39.98]
[1752884464901,6.41493367,177.15,177.14,39.98]
[1752884466202,0.77,177.15,177.14,39.98]
[1752884467512,6.41493367,177.15,177.14,39.98]
[1752884468804,0.77,177.15,177.14,56.76468397]
[1752884470500,0.77,177.15,177.14,39.98]
[1752884471123,6.41493367,177.15,177.14,39.98]
[1752884471325,0.77,177.15,177.14,39.98]
[1752884471530,6.41493367,177.15,177.14,39.98]
[1752884472197,0.77,177.15,177.14,39.98]
[1752884475747,6.41493367,177.15,177.14,39.98]
[1752884487534,7.8523,177.14,177.12,0.03]
[1752884487759,8.5623,177.14,177.12,39.99]
[1752884487966,0.71,177.13,177.12,39.99]
[1752884489349,6.35557104,177.13,177.12,39.99]
[1752884502364,6.39502979,177.15,177.12,39.99]
[1752884502583,0.06,177.15,177.12,40.22]
[1752884502743,0.06,177.15,177.13,0.23]
[1752884503375,0.06,177.15,177.12,45.865817]
[1752884507874,0.06,177.15,177.13,17.01468397]
[1752884508082,0.06,177.15,177.13,17.57924107]
[1752884508259,0.06,177.15,177.14,0.23]
[1752884508883,0.06,177.15,177.13,17.01468397]
[1752884509072,0.06,177.15,177.13,22.66018084]
[1752884511075,0.06,177.15,177.13,22.43018084]
[1752884511267,0.06,177.15,177.14,0.23]
[1752884512477,0.06,177.15,177.14,5.87525234]
[1752884515864,0.06,177.15,177.14,45.81525234]
[1752884519693,0.06,177.15,177.14,45.58525234]
[1752884520071,0.75,177.15,177.14,56.72468397]
[1752884520263,0.06,177.15,177.14,62.36993631]
[1752884521508,0.06,177.15,177.14,56.72468397]
[1752884521669,0.75,177.15,177.14,39.94]
[1752884522005,0.75,177.15,177.12,0.03]
[1752884522165,0.75,177.15,177.14,39.92]
[1752884526294,0.06,177.15,177.14,39.92]
[1752884528874,0.06,177.15,177.14,45.56525234]
[1752884530998,0.06,177.15,177.14,39.92]
[1752884532875,0.06,177.15,177.14,45.56525234]
[1752884535299,0.06,177.15,177.14,39.92]
[1752884535300,0.72,177.15,177.14,39.92]
[1752884535794,0.72,177.15,177.12,0.03]
[1752884535987,0.72,177.15,177.13,39.92]
[1752884539992,0.66,177.14,177.13,39.92]
[1752884540708,0.06,177.15,177.13,45.56550513]
[1752884544285,0.72,177.15,177.13,45.56550513]
[1752884544481,0.06,177.15,177.13,45.56550513]
[1752884545493,0.72,177.15,177.13,45.56550513]
[1752884546607,0.66,177.14,177.13,45.56550513]
[1752884548090,0.06,177.15,177.13,45.56550513]
[1752884548292,0.72,177.15,177.13,45.56550513]
[1752884549012,0.72,177.15,177.13,39.92]
[1752884549013,0.66,177.14,177.13,39.92]
[1752884552503,0.06,177.15,177.13,45.56557104]
[1752884552705,0.72,177.15,177.13,45.56557104]
[1752884553100,0.72,177.15,177.13,39.92]
[1752884553520,0.06,177.15,177.13,39.92]
[1752884553821,0.66,177.14,177.13,39.92]
[1752884557506,0.06,177.15,177.13,45.56557104]
[1752884557905,0.75,177.15,177.13,45.56557104]
[1752884558222,0.06,177.15,177.13,45.56557104]
[1752884559909,0.06,177.15,177.14,17.01468397]
[1752884560121,0.06,177.15,177.14,17.5792092]
[1752884560625,0.06,177.15,177.14,17.3492092]
[1752884561124,0.06,177.15,177.14,22.99446154]
[1752884563714,0.06,177.15,177.14,23.22446154]
[1752884565216,0.06,177.15,177.14,22.99446154]
[1752884565624,0.06,177.15,177.14,22.42993631]
[1752884567728,0.06,177.15,177.14,16.78468397]
[1752884568030,0.75,177.15,177.14,16.78468397]
[1752884570641,0.06,177.15,177.14,22.42993631]
[1752884571529,0.06,177.15,177.14,22.65993631]
[1752884571739,0.06,177.15,177.14,23.22446154]
[1752884580257,0.06,177.15,177.14,22.99446154]
[1752884581155,0.06,177.15,177.14,17.3492092]
[1752884581332,0.75,177.15,177.14,16.78468397]
[1752884581683,0.75,177.15,177.13,39.92]
[1752884583615,0.69,177.14,177.13,39.92]
[1752884584953,0.69,177.14,177.13,39.88]
[1752884587863,0.06,177.15,177.13,39.88]
[1752884588049,0.72,177.15,177.13,39.88]
[1752884588257,0.66,177.14,177.13,39.88]
[1752884589661,0.06,177.15,177.13,39.88]
[1752884589963,0.72,177.15,177.13,39.88]
[1752884591457,0.06,177.15,177.13,39.88]
[1752884591636,0.66,177.14,177.13,39.88]
[1752884603867,0.06,177.15,177.13,40.11]
[1752884604206,0.72,177.15,177.14,16.78468397]
[1752884606079,0.72,177.15,177.13,39.88]
[1752884608656,0.66,177.14,177.13,39.88]
[1752884608977,0.72,177.15,177.13,39.88]
[1752884609855,0.66,177.14,177.13,39.88]
[1752884614383,0.72,177.14,177.13,39.88]
[1752884632087,0.06,177.14,177.13,39.88]
[1752884634486,0.06,177.14,177.13,40.11]
[1752884634689,0.06,177.14,177.13,39.88]
[1752884641009,0.77,177.14,177.13,39.88]
[1752884641506,0.77,177.14,177.13,39.82]
[1752884641736,0.77,177.14,177.12,0.03]
[1752884641876,0.77,177.14,177.11,0.03]
[1752884642281,5.64557104,177.13,177.11,0.03]
[1752884642704,0.71,177.12,177.11,0.03]
[1752884643594,5.18938525,177.12,177.11,0.03]
[1752884643786,0.71,177.12,177.11,0.03]
[1752884644488,6.35588979,177.12,177.11,0.03]
[1752884655027,0.77,177.14,177.11,0.03]
[1752884655231,0.06,177.14,177.11,0.03]
[1752884655920,0.77,177.14,177.11,0.03]
[1752884656320,0.06,177.14,177.11,0.03]
[1752884656696,0.06,177.14,177.11,16.81468397]
[1752884657021,0.06,177.14,177.12,17.04468397]
[1752884657191,0.06,177.14,177.13,39.82]
[1752884659820,0.06,177.14,177.13,63.07481211]
[1752884661597,0.06,177.14,177.13,62.51025501]
[1752884671007,0.06,177.14,177.13,62.25025501]
[1752884671422,0.06,177.14,177.13,62.51025501]
[1752884671614,0.06,177.14,177.13,62.25025501]
[1752884675918,0.77,177.14,177.13,56.58468397]
[1752884676128,0.77,177.14,177.13,39.8]
[1752884678716,0.06,177.14,177.13,56.58468397]
[1752884678919,0.06,177.14,177.13,62.49025501]
[1752884689765,0.06,177.14,177.13,63.05481211]
[1752884692237,0.06,177.14,177.13,150.59481211]
[1752884692427,0.06,177.14,177.13,150.03025501]
[1752884699068,0.06,177.14,177.13,149.77025501]
[1752884700255,0.06,177.14,177.13,144.12468397]
[1752884700575,0.06,177.14,177.13,149.77025501]
[1752884704074,0.06,177.14,177.13,62.23025501]
[1752884704279,0.06,177.14,177.13,62.79481211]
[1752884706787,0.74,177.14,177.13,62.79481211]
[1752884707593,0.06,177.14,177.13,62.79481211]
[1752884707890,0.06,177.14,177.13,57.14924107]
[1752884708065,0.74,177.14,177.13,57.14924107]
[1752884708891,0.06,177.14,177.13,57.14924107]
[1752884709793,0.74,177.14,177.13,57.14924107]
[1752884711488,0.74,177.14,177.13,17.34924107]
[1752884711687,0.74,177.14,177.13,56.54468397]
[1752884717390,0.06,177.14,177.13,57.10924107]
[1752884718094,0.06,177.14,177.13,63.01481211]
[1752884718701,0.06,177.14,177.13,89.01481211]
[1752884719697,0.06,177.14,177.13,88.75481211]
[1752884721802,0.74,177.14,177.13,88.75481211]
[1752884722603,0.06,177.14,177.13,88.75481211]
[1752884729505,0.06,177.14,177.13,89.01481211]
[1752884733794,0.06,177.14,177.13,176.55481211]
[1752884733995,0.06,177.14,177.13,175.99025501]
[1752884734808,0.06,177.14,177.13,175.73025501]
[1752884735695,0.06,177.14,177.13,175.99025501]
[1752884738191,0.06,177.14,177.13,175.73025501]
[1752884738398,0.73,177.14,177.13,175.73025501]
[1752884739627,0.73,177.14,177.13,88.19025501]
[1752884739827,0.73,177.14,177.13,88.75481211]
[1752884740027,0.06,177.14,177.13,88.75481211]
[1752884744829,0.73,177.14,177.13,88.75481211]
[1752884746718,0.73,177.14,177.13,88.71481211]
[1752884747034,0.73,177.14,177.13,88.15025501]
[1752884747631,0.73,177.14,177.13,82.50468397]
[1752884747807,0.73,177.14,177.13,56.50468397]
[1752884749361,0.73,177.14,177.13,39.72]
[1752884755341,0.73,177.14,177.13,56.50468397]
[1752884759443,0.73,177.14,177.13,39.72]
[1752884759665,0.73,177.14,177.13,56.50468397]
[1752884760230,0.06,177.14,177.13,62.15025501]
[1752884762728,0.06,177.14,177.13,62.41025501]
[1752884764452,0.06,177.14,177.13,62.97481211]
[1752884766335,0.06,177.14,177.13,62.71481211]
[1752884791270,0.73,177.14,177.13,62.71481211]
[1752884797372,0.73,177.14,177.13,57.06924107]
[1752884798901,0.73,177.14,177.13,56.46468397]
[1752884805802,6.37525234,177.14,177.13,56.46468397]
[1752884806685,14.30825234,177.14,177.13,39.68]
[1752884807476,14.30825234,177.14,177.12,0.03]
[1752884807683,0.69,177.13,177.12,39.71]
[1752884807915,0.69,177.13,177.12,0.03]
[1752884809612,6.33557104,177.13,177.12,0.03]
[1752884810502,26.0,177.11,177.1,0.2]
[1752884810703,26.0,177.11,177.08,0.2]
[1752884810704,33.933,177.1,177.08,0.2]
[1752884810904,34.623,177.1,177.08,0.2]
[1752884811106,0.69,177.09,177.08,0.2]
[1752884811898,6.33684623,177.09,177.08,0.2]
[1752884819118,6.33684623,177.09,177.08,1e-08]
[1752884819302,10.0,177.08,177.06,0.03]
[1752884819622,10.0,177.07,177.06,1e-08]
[1752884819822,10.69,177.07,177.06,1e-08]
[1752884820117,16.3938,177.06,177.05,1e-08]
[1752884820420,7.0838,177.06,177.05,1e-08]
[1752884821023,17.0838,177.06,177.05,1e-08]
[1752884821326,12.731603,177.06,177.05,1e-08]
[1752884822204,22.731603,177.06,177.05,1e-08]
[1752884822610,12.731603,177.06,177.05,1e-08]
[1752884823204,22.731603,177.06,177.05,1e-08]
[1752884824589,12.731603,177.06,177.05,1e-08]
[1752884825222,22.731603,177.06,177.05,1e-08]
[1752884825734,56.611603,177.06,177.05,1e-08]
[1752884826097,46.611603,177.06,177.05,1e-08]
[1752884826323,56.611603,177.06,177.05,1e-08]
[1752884829926,96.291603,177.06,177.05,1e-08]
[1752884830125,86.291603,177.06,177.05,1e-08]
[1752884830296,96.291603,177.06,177.05,1e-08]
[1752884830501,86.291603,177.06,177.05,1e-08]
[1752884830710,96.291603,177.06,177.05,1e-08]
[1752884831098,86.291603,177.06,177.05,1e-08]
[1752884831295,96.291603,177.06,177.05,1e-08]
[1752884833332,86.291603,177.06,177.05,1e-08]
[1752884834506,96.291603,177.06,177.05,1e-08]
[1752884836412,12.731603,177.06,177.05,1e-08]
[1752884836613,16.78468397,177.1,177.05,0.26000001]
[1752884836614,6.31652738,177.1,177.05,0.26000001]
[1752884836826,17.6947506,177.11,177.05,0.26000001]
[1752884838520,17.6947506,177.11,177.06,5.647803]
[1752884838724,17.6947506,177.11,177.07,0.26]
[1752884838937,24.01099872,177.11,177.06,0.26]
[1752884840833,23.34099872,177.11,177.06,0.26]
[1752884841014,0.67,177.1,177.06,0.26]
[1752884841539,0.67,177.09,177.05,16.78468398]
[1752884842013,0.67,177.09,177.05,1e-08]
[1752884842630,0.67,177.09,177.05,0.26000001]
[1752884843011,6.31688415,177.09,177.05,0.26000001]
[1752884843511,6.31688415,177.09,177.05,1e-08]
[1752884843819,0.67,177.09,177.05,1e-08]
[1752884844040,5.64658476,177.1,177.06,0.26]
[1752884844411,17.6947506,177.11,177.07,0.26]
[1752884844611,17.6947506,177.11,177.08,0.26]
[1752884845122,17.6947506,177.11,177.06,17.04468397]
[1752884845438,17.6947506,177.11,177.07,0.26]
[1752884847340,18.3647506,177.11,177.07,0.26]
[1752884848916,17.6947506,177.11,177.07,5.90746769]
[1752884849118,17.6947506,177.11,177.07,0.26]
[1752884849333,18.3647506,177.11,177.07,0.26]
[1752884849729,18.3647506,177.11,177.07,5.90742396]
[1752884849919,17.6947506,177.11,177.07,5.90742396]
[1752884850618,17.6947506,177.11,177.06,22.43243563]
[1752884850619,18.3647506,177.11,177.06,22.43243563]
[1752884850911,18.3647506,177.11,177.06,22.69243563]
[1752884851512,18.3647506,177.11,177.07,0.26]
[1752884852534,17.6947506,177.11,177.06,22.43243563]
[1752884852737,17.6947506,177.11,177.08,0.26]
[1752884852943,17.6947506,177.11,177.08,39.9]
[1752884853326,17.6947506,177.11,177.08,45.54715779]
[1752884853632,17.6947506,177.11,177.09,17.04468397]
[1752884854030,17.6947506,177.11,177.1,0.26]
[1752884856062,17.6947506,177.11,177.1,22.69121135]
[1752884859372,0.06,177.14,177.11,16.78468397]
[1752884859662,0.06,177.14,177.12,39.64]
[1752884864275,0.73,177.14,177.12,39.64]
[1752884868080,0.06,177.14,177.12,39.64]
[1752884868772,0.06,177.14,177.12,45.54584747]
[1752884869093,0.06,177.14,177.13,17.04468397]
[1752884869248,0.06,177.14,177.13,16.78468397]
[1752884869551,0.06,177.14,177.13,17.04468397]
[1752884870146,0.06,177.14,177.13,22.69025501]
[1752884873175,0.06,177.14,177.13,16.78468397]
[1752884873378,0.73,177.14,177.12,39.64]
[1752884875583,0.06,177.14,177.12,45.28583685]
[1752884876186,0.06,177.14,177.12,45.54583685]
[1752884879063,0.06,177.14,177.12,45.28583685]
[1752884880258,0.06,177.14,177.12,45.54583685]
[1752884880455,0.06,177.14,177.1,0.56465273]
[1752884880682,0.67,177.13,177.11,56.38468397]
[1752884881350,0.67,177.12,177.11,39.6]
[1752884882159,6.31588979,177.12,177.11,39.6]
[1752884883056,0.67,177.12,177.11,39.6]
[1752884883978,5.7053303,177.14,177.11,39.6]
[1752884883979,0.73,177.14,177.11,39.6]
[1752884884179,0.06,177.14,177.11,39.6]
[1752884884374,0.06,177.14,177.12,16.78468397]
[1752884884559,0.06,177.14,177.13,39.6]
[1752884886880,0.06,177.14,177.13,62.85481211]
[1752884894499,0.06,177.14,177.13,150.39481211]
[1752884894698,0.06,177.14,177.13,149.83025501]
[1752884895078,0.06,177.14,177.13,175.83025501]
[1752884899781,0.06,177.18,177.17,42.78468397]
[1752884900005,0.06,177.18,177.17,169.90468397]
[1752884900208,0.06,177.18,177.17,84.20148397]
[1752884900411,0.06,177.19,177.18,16.78468397]
[1752884900703,0.06,177.19,177.18,17.04468397]
[1752884902007,0.06,177.19,177.18,22.68866184]
[1752884902387,0.06,177.19,177.18,22.42866184]
[1752884903086,0.06,177.19,177.18,22.68866184]
[1752884905788,0.06,177.19,177.18,27.89753667]
[1752884908799,0.06,177.19,177.18,27.63753667]
[1752884911002,0.06,177.19,177.18,115.17753667]
[1752884911411,0.06,177.19,177.18,115.74193445]
[1752884912501,0.06,177.19,177.18,116.00193445]
[1752884912814,0.06,177.19,177.18,115.43753667]
[1752884913237,0.06,177.22,177.21,47.9935588]
[1752884913398,0.06,177.22,177.21,175.65786104]
[1752884913597,0.06,177.22,177.21,175.0935588]
[1752884915720,0.06,177.22,177.21,180.7365812]
[1752884919402,0.06,177.22,177.21,180.7165812]
[1752884920137,0.06,177.22,177.21,180.9765812]
[1752884920614,0.06,177.23,177.22,16.78468397]
[1752884920812,0.06,177.28,177.26,22.42611463]
[1752884921110,0.1,177.29,177.28,42.78468397]
[1752884921339,0.06,177.31,177.29,16.78468397]
[1752884921524,0.06,177.32,177.31,16.78468397]
[1752884921828,0.06,177.32,177.3,0.82401579]
[1752884922011,0.06,177.32,177.31,56.32468397]
[1752884922201,0.06,177.32,177.31,61.5335588]
[1752884922399,0.06,177.32,177.31,61.7935588]
[1752884922820,0.06,177.32,177.31,61.5335588]
[1752884923296,0.77,177.32,177.31,56.32468397]
[1752884923493,0.77,177.32,177.23,169.43814927]
[1752884923494,5.97887483,177.32,177.29,16.78468397]
[1752884923731,5.20887483,177.3,177.25,5.20887483]
[1752884923937,6.6521,177.32,177.29,5.20887483]
[1752884924236,0.06,177.32,177.31,21.9935588]
[1752884924437,0.06,177.32,177.3,39.54]
[1752884924438,0.77,177.32,177.3,39.54]
[1752884924604,5.20887483,177.31,177.27,21.9935588]
[1752884924805,0.71,177.3,177.29,16.78468397]
[1752884925038,6.35015792,177.3,177.29,16.78468397]
[1752884939853,5.63983982,177.31,177.29,16.78468397]
[1752884940051,5.63983982,177.31,177.3,39.52]
[1752884940560,6.34983982,177.31,177.3,39.52]
[1752884942148,6.34983982,177.31,177.29,16.78468397]
[1752884942337,10.84871465,177.31,177.3,39.52]
[1752884942738,5.63983982,177.31,177.3,39.52]
[1752884942957,6.34983982,177.31,177.3,39.52]
[1752884953948,0.06,177.32,177.31,16.78468397]
[1752884955066,6.41952176,177.32,177.31,16.78468397]
[1752884960872,5.69952176,177.32,177.31,16.78468397]
[1752884961173,6.41952176,177.32,177.31,16.78468397]
[1752884965472,11.62839659,177.32,177.31,16.78468397]
[1752884966853,11.62839659,177.32,177.3,39.55]
[1752884967051,5.92887483,177.31,177.3,39.55]
[1752884967874,0.72,177.31,177.3,56.33468397]
[1752884968466,6.35983982,177.31,177.3,56.33468397]
[1752884970359,5.69952176,177.32,177.3,56.33468397]
[1752884970559,0.72,177.31,177.3,56.33468397]
[1752884971451,6.35983982,177.31,177.3,56.33468397]
[1752884973786,0.06,177.32,177.31,16.78468397]
[1752884974274,5.26887483,177.32,177.3,0.03]
[1752884974475,5.26887483,177.32,177.31,39.5]
[1752884975058,5.98887483,177.32,177.31,39.5]
[1752884976666,11.62839659,177.32,177.31,39.5]
[1752884978969,9.75140992,177.32,177.31,39.5]
[1752884980856,6.41952176,177.32,177.31,39.5]
[1752884981178,9.75140992,177.32,177.3,0.03]
[1752884981377,4.05188816,177.31,177.3,39.53]
[1752884982678,0.72,177.31,177.3,39.53]
[1752884982983,4.05188816,177.31,177.3,39.53]
[1752884983277,9.69172798,177.31,177.3,39.53]
[1752884995791,9.69172798,177.31,177.3,0.03]
[1752884999802,6.35983982,177.31,177.3,0.03]
[1752885000009,9.69172798,177.31,177.3,0.03]
[1752885001288,35.69172798,177.31,177.3,0.03]
[1752885002202,26.0,177.28,177.26,0.03]
[1752885002374,26.0,177.28,177.22,0.03]
[1752885002375,4.84268816,177.27,177.22,0.03]
[1752885002580,3.33188816,177.23,177.22,0.03]
[1752885002885,6.36143066,177.26,177.22,0.03]
[1752885003075,4.05188816,177.25,177.22,0.03]
[1752885004500,9.6938861,177.25,177.22,0.03]
[1752885004702,9.69300058,177.27,177.23,0.29]
[1752885004885,9.69300058,177.27,177.23,39.79]
[1752885005210,9.69266039,177.29,177.24,20.40657213]
[1752885005383,35.69266039,177.29,177.24,20.40657213]
[1752885005587,0.72,177.28,177.24,20.40657213]
[1752885007002,6.36082002,177.28,177.24,22.28253959]
[1752885009101,0.66,177.27,177.24,16.78468397]
[1752885009292,0.66,177.27,177.24,21.99253959]
[1752885009497,6.30082002,177.28,177.24,21.99253959]
[1752885010182,5.70013039,177.31,177.27,5.20785562]
[1752885010508,5.20785562,177.3,177.28,39.48]
[1752885010702,5.64047605,177.29,177.27,39.48]
[1752885011006,10.84833167,177.29,177.27,39.48]
[1752885011907,5.20785562,177.29,177.27,39.48]
[1752885012207,5.69952176,177.32,177.27,39.48]
[1752885012208,0.06,177.32,177.28,0.66]
[1752885012387,0.06,177.32,177.29,16.78468397]
[1752885012588,0.06,177.32,177.31,16.78468397]
[1752885012810,0.06,177.32,177.29,17.34873157]
[1752885012811,0.06,177.32,177.29,1.2240476]
[1752885012987,0.06,177.32,177.29,5.77190322]
[1752885013196,0.06,177.32,177.31,16.78468397]
[1752885013406,0.06,177.32,177.3,0.66]
[1752885013609,0.06,177.32,177.29,16.78468397]
[1752885013904,0.06,177.32,177.29,17.44468397]
[1752885015308,0.06,177.32,177.29,22.65253959]
[1752885015504,0.06,177.32,177.29,17.44468397]
[1752885015681,0.06,177.32,177.28,16.78468397]
[1752885015682,0.66,177.31,177.28,16.78468397]
[1752885015885,5.86785562,177.31,177.28,16.78468397]
[1752885016092,11.50783063,177.31,177.27,17.44468397]
[1752885016296,5.86785562,177.3,177.26,16.78468397]
[1752885016693,5.86785562,177.3,177.26,17.44468397]
[1752885016908,10.84783063,177.31,177.26,21.99253959]
[1752885017133,11.50783063,177.31,177.27,0.66]
[1752885017595,0.66,177.31,177.27,0.66]
[1752885017797,0.06,177.32,177.29,5.20785562]
[1752885017995,0.06,177.32,177.3,0.66]